fUSD/lending_fUSD_20241201
["ID","MTS","AMOUNT","RATE_DAILY","PERIOD"]
[343910453,1733043042837,-1076.30518721,7.999e-05,2]
[343910454,1733043042849,-126188.96067318,7.999e-05,2]
[343910455,1733043042860,-5512.2821083,7.999e-05,2]
[343910456,1733043042898,-644.80508044,7.999e-05,2]
[343910469,1733043045615,-4778.97906461,7.999e-05,2]
[343910470,1733043045626,-1701.35,7.999e-05,2]
[343910471,1733043045639,-901.17642205,7.999e-05,2]
[343910472,1733043045675,-150.0,7.782e-05,2]
[343910473,1733043045684,-4127.23740034,7.999e-05,2]
[343910474,1733043045756,-3.44568942,7.999e-05,2]
[343910475,1733043045769,-427.58997034,7.999e-05,2]
[343910476,1733043045803,-150.0,7.826e-05,2]
[343910477,1733043045813,-482.52642963,7.999e-05,2]
[343910478,1733043045824,-628.55613291,7.999e-05,2]
[343910479,1733043045844,-359.00939672,7.999e-05,2]
[343910480,1733043045856,-1540.07997,7.999e-05,2]
[343910481,1733043045902,-936159.78566801,7.999e-05,2]
[343910483,1733043212634,200.0,0.00024898,120]
[343910484,1733043507700,-200.0,7.413e-05,2]
[343910485,1733043507735,-15980.54,7.458e-05,2]
[343910486,1733043507758,-197.77,7.53e-05,2]
[343910487,1733043507782,-245.51,7.562e-05,2]
[343910488,1733043507804,-1000.0,7.9e-05,2]
[343910489,1733043507829,-159.84733373,7.973e-05,2]
[343910490,1733043507850,-538.37484809,7.973e-05,2]
[343910491,1733043507872,-511.81214025,7.973e-05,2]
[343910492,1733043507894,-351.84151874,7.973e-05,2]
[343910493,1733043507916,-1000.0,7.998e-05,2]
[343910494,1733043507937,-150.0,7.998e-05,2]
[343910495,1733043507960,-30322.40945919,7.999e-05,2]
[343910496,1733043643500,255.76788663,0.00025,120]
[343910507,1733044195278,1000.0,0.00025,120]
[343910508,1733044198484,510.07977274,0.00025,120]
[343910514,1733044231855,-250.0,7.649e-05,2]
[343910515,1733044231866,-158.09,7.658e-05,2]
[343910516,1733044231875,-500.0,7.836e-05,2]
[343910517,1733044231885,-1000.0,7.9e-05,2]
[343910518,1733044231895,-150.0,7.955e-05,2]
[343910519,1733044231905,-300.0,7.997e-05,2]
[343910520,1733044231915,-669.88667716,7.998e-05,2]
[343910521,1733044231925,-703.246,7.998e-05,2]
[343910522,1733044231935,-150.0,7.998e-05,2]
[343910523,1733044231944,-150.0,7.998e-05,2]
[343910524,1733044231954,-150.0,7.998e-05,2]
[343910525,1733044231963,-150.0,7.998e-05,2]
[343910526,1733044231972,-150.0,7.998e-05,2]
[343910527,1733044231982,-150.0,7.998e-05,2]
[343910528,1733044231991,-150.0,7.998e-05,2]
[343910529,1733044232000,-150.0,7.998e-05,2]
[343910530,1733044232010,-150.0,7.998e-05,2]
[343910531,1733044232021,-150.0,7.998e-05,2]
[343910532,1733044232032,-1000.0,7.998e-05,2]
[343910533,1733044232041,-150.0,7.998e-05,2]
[343910534,1733044232051,-150.0,7.998e-05,2]
[343910535,1733044232060,-665.42790658,7.999e-05,2]
[343910536,1733044232074,-11135.85136245,7.999e-05,2]
[343910537,1733044232086,-1985.14521577,7.999e-05,2]
[343910538,1733044232238,-9727.8302374,7.999e-05,2]
[343910539,1733044232251,-142754.85477822,7.999e-05,2]
[343910540,1733044232262,-106944.20000014,7.999e-05,2]
[343910541,1733044232275,-63171.21412711,7.999e-05,2]
[343910542,1733044232286,-1286.47611065,7.999e-05,2]
[343910571,1733044238008,-351.53694423,7.999e-05,2]
[343910572,1733044238020,-566.76354058,7.999e-05,2]
[343910573,1733044238031,-540.65357155,7.999e-05,2]
[343910574,1733044238043,-10100.71534322,7.999e-05,2]
[343910575,1733044238173,-3933.52919186,7.999e-05,2]
[343910576,1733044238186,-4392.91305409,7.999e-05,2]
[343910577,1733044238197,-478.31959918,7.999e-05,2]
[343910578,1733044238208,-358.33485164,7.999e-05,2]
[343910579,1733044238219,-6216.75320516,7.999e-05,2]
[343910583,1733044239835,-668.235384,7.999e-05,2]
[343910584,1733044239847,-4883.87071231,7.999e-05,2]
[343910585,1733044239895,-798.49527446,7.999e-05,2]
[343910586,1733044239952,-1531.84926868,7.999e-05,2]
[343910587,1733044240011,-52664.50791311,7.999e-05,2]
[343910588,1733044240070,-741.329995,7.999e-05,2]
[343910589,1733044240083,-2016.84,7.999e-05,2]
[343910590,1733044240184,-388.8658327,7.999e-05,2]
[343910596,1733044242977,-0.02311639,7.999e-05,2]
[343910597,1733044243096,-556312.90361223,7.999e-05,2]
[343910598,1733044243815,-9365.94024559,7.999e-05,2]
[343910599,1733044243930,-20515.46477218,7.999e-05,2]
[343910636,1733044245798,-250.10479714,7.999e-05,2]
[343910637,1733044245913,-2091.99977,7.999e-05,2]
[343910638,1733044245924,-1928.128872,7.999e-05,2]
[343910639,1733044245936,-536.835582,7.999e-05,2]
[343910640,1733044245949,-335.24999975,7.999e-05,2]
[343910641,1733044245960,-573.329996,7.999e-05,2]
[343910642,1733044245972,-3715.3,7.999e-05,2]
[343910643,1733044245996,-165372.6,7.999e-05,2]
[343910644,1733044246032,-1972.7181405,7.999e-05,2]
[343910645,1733044246152,-5008.17589993,7.999e-05,2]
[343910651,1733044991853,150.0,7.125e-05,2]
[343910652,1733044991889,11.06034807,7.125e-05,2]
[343910653,1733044994546,2000.0,0.00024688,120]
[343910654,1733045167108,150.82282769,7e-05,2]
[343910655,1733045220000,186743.2635436,0.0001899,30]
[343910710,1733045432092,-197.77,7.572e-05,2]
[343910711,1733045432102,-680.75,7.6e-05,2]
[343910712,1733045432112,-161.508551,7.764e-05,2]
[343910713,1733045432353,-153.48,7.807e-05,2]
[343910714,1733045432363,-846.326,7.839e-05,2]
[343910715,1733045432372,-150.0,7.841e-05,2]
[343910716,1733045432382,-706.32642614,7.99e-05,2]
[343910718,1733045432392,-221.49224689,7.998e-05,2]
[343910720,1733045432401,-300.0,7.998e-05,2]
[343910721,1733045432410,-150.0,7.998e-05,2]
[343910723,1733045432421,-204680.61237232,7.999e-05,2]
[343910729,1733045432486,-242798.78582006,7.999e-05,2]
[343910733,1733045438125,-18741.06385182,7.999e-05,2]
[343910734,1733045438355,-5526.98934127,7.999e-05,2]
[343910738,1733045440133,-1971.65,7.999e-05,2]
[343910739,1733045440145,-688.92001081,7.999e-05,2]
[343910740,1733045440257,-1999.09036689,7.999e-05,2]
[343910741,1733045440434,-9379.9224,7.999e-05,2]
[343910751,1733045443106,-560.39037351,7.999e-05,2]
[343910754,1733045443117,-48254.45460676,7.999e-05,2]
[343910755,1733045443128,-6002.76301214,7.999e-05,2]
[343910756,1733045443229,-4576.08995515,7.999e-05,2]
[343910757,1733045443346,-1168.1499999,7.999e-05,2]
[343910758,1733045443357,-827.930001,7.999e-05,2]
[343910770,1733045446565,-9702.6,7.999e-05,2]
[343910771,1733045446576,-774.221801,7.999e-05,2]
[343910772,1733045446664,-9081.80542693,7.999e-05,2]
[343910773,1733045446680,-476.16,7.999e-05,2]
[343910774,1733045446700,-2027.92014329,7.999e-05,2]
[343910775,1733045650322,151.21,6.121e-05,2]
[343910776,1733045873528,150.0,7.125e-05,2]
[343910777,1733045873549,2.12677031,7.125e-05,2]
[343910779,1733046002787,150.0,7.125e-05,2]
[343910780,1733046002991,150.0,7.125e-05,2]
[343910781,1733046003192,150.0,7.125e-05,2]
[343910782,1733046003382,150.0,7.125e-05,2]
[343910783,1733046003560,150.0,7.125e-05,2]
[343910784,1733046003738,150.0,7.125e-05,2]
[343910785,1733046003907,150.0,7.125e-05,2]
[343910786,1733046004097,150.0,7.125e-05,2]
[343910787,1733046004280,150.0,7.125e-05,2]
[343910788,1733046004466,150.0,7.125e-05,2]
[343910789,1733046004694,150.0,7.125e-05,2]
[343910790,1733046004914,150.0,7.125e-05,2]
[343910791,1733046005062,155.96286367,7.125e-05,2]
[343910792,1733046022798,2922.81020615,0.00025,120]
[343910796,1733046356620,-159.01,7.473e-05,2]
[343910797,1733046422201,-200.0,7.595e-05,2]
[343910798,1733046422226,-150.0,7.713e-05,2]
[343910799,1733046422250,-300.0,7.799e-05,2]
[343910800,1733046422274,-20937.0,7.8e-05,2]
[343910801,1733046422298,-345.2995,7.899e-05,2]
[343910802,1733046422322,-150.0,7.973e-05,2]
[343910803,1733046422346,-43507.62006365,7.99e-05,2]
[343910804,1733046422370,-601.4825099,7.99e-05,2]
[343910805,1733046422394,-842.0755138,7.993e-05,2]
[343910806,1733046422418,-1082.6685178,7.995e-05,2]
[343910807,1733046422442,-1323.2615218,7.995e-05,2]
[343910808,1733046422466,-1563.8545257,7.995e-05,2]
[343910809,1733046422490,-677.061,7.998e-05,2]
[343910810,1733046422515,-12845.40131057,7.998e-05,2]
[343910811,1733046422542,-58474.27553678,7.999e-05,2]
[343910826,1733046632370,-489.36,7.579e-05,2]
[343910827,1733046632379,-201.61,7.579e-05,2]
[343910828,1733046632389,-150.0,7.843e-05,2]
[343910829,1733046632398,-895.12514037,7.99e-05,2]
[343910830,1733046632408,-319.3872128,7.99e-05,2]
[343910831,1733046632418,-1391.9202894,7.993e-05,2]
[343910832,1733046632427,-863.5007023,7.993e-05,2]
[343910833,1733046632436,-311.9288296,7.993e-05,2]
[343910834,1733046632446,-300.0,7.994e-05,2]
[343910835,1733046632455,-1355.3989646,7.995e-05,2]
[343910836,1733046632464,-1318.8776399,7.995e-05,2]
[343910837,1733046632473,-1282.3563152,7.995e-05,2]
[343910838,1733046632483,-1245.8349905,7.995e-05,2]
[343910839,1733046632495,-840.8440963,7.995e-05,2]
[343910840,1733046632504,-818.1874903,7.995e-05,2]
[343910841,1733046632513,-795.5308843,7.995e-05,2]
[343910842,1733046632523,-772.8742783,7.995e-05,2]
[343910843,1733046632532,-304.4704465,7.995e-05,2]
[343910844,1733046632543,-297.0120634,7.995e-05,2]
[343910845,1733046632553,-289.5536803,7.995e-05,2]
[343910846,1733046632562,-150.0,7.998e-05,2]
[343910847,1733046632572,-11071.58368393,7.999e-05,2]
[343910852,1733046638221,-1059.44494533,7.999e-05,2]
[343910853,1733046638416,-7382.50127961,7.999e-05,2]
[343910854,1733046638526,-378.48752283,7.999e-05,2]
[343910866,1733046640334,-728.88929746,7.999e-05,2]
[343910867,1733046640750,-1845.85271311,7.999e-05,2]
[343910868,1733046640762,-297000.0,7.999e-05,2]
[343910871,1733046643276,-150.0,7.883e-05,2]
[343910872,1733046643286,-5873.73542309,7.999e-05,2]
[343910873,1733046643304,-47234.19290168,7.999e-05,2]
[343910874,1733046643405,-694.329708,7.999e-05,2]
[343910875,1733046643601,-2028.21777867,7.999e-05,2]
[343910888,1733046646402,-10894.20021332,7.999e-05,2]
[343910889,1733046646413,-682.40362712,7.999e-05,2]
[343910890,1733046646478,-897.14573058,7.999e-05,2]
[343910891,1733046646489,-9703.23062616,7.999e-05,2]
[343910892,1733046646506,-3424.1,7.999e-05,2]
[343910893,1733046646536,-926.72424998,7.999e-05,2]
[343910896,1733046803363,150.0,6.004e-05,2]
[343910897,1733046803385,9.6,6.004e-05,2]
[343910898,1733046803507,500.0,0.00024999,120]
[343910900,1733046984800,-1265.3,7.442e-05,2]
[343910901,1733046984870,-159.6,7.505e-05,2]
[343910902,1733046984933,-150.0,7.736e-05,2]
[343910903,1733046984989,-150.0,7.751e-05,2]
[343910904,1733046985018,-237.16275915,7.793e-05,2]
[343910905,1733046985039,-296.38995261,7.837e-05,2]
[343910906,1733046985060,-300.0,7.898e-05,2]
[343910907,1733046985082,-8801.16679638,7.899e-05,2]
[343910908,1733046985107,-150.0,7.901e-05,2]
[343910909,1733046985128,-150.0,7.998e-05,2]
[343910910,1733046985152,-1047314.38049186,7.999e-05,2]
[343910911,1733047025332,247.10892447,0.0001496,10]
[343910912,1733047187979,48768.79141827,0.00014,10]
[343910913,1733047213021,3729.41143552,0.00025,120]
[343910914,1733047257075,6000.0,0.00025,120]
[343910915,1733047267172,200.0,0.00025,120]
[343910916,1733047281301,1049.31,7.097e-05,2]
[343910917,1733047336380,150.0,7.085e-05,2]
[343910918,1733047336402,150.0,7.085e-05,2]
[343910919,1733047336422,249.68327461,7.085e-05,2]
[343910920,1733047336447,171.21672539,7.085e-05,2]
[343910921,1733047352195,-2049.1,7.168e-05,2]
[343910922,1733047352217,-200.95214991,7.191e-05,2]
[343910923,1733047352241,-23012.72,7.192e-05,2]
[343910924,1733047352264,-153.84,7.279e-05,2]
[343910925,1733047352285,-3037.65,7.308e-05,2]
[343910926,1733047352308,-200.0,7.31e-05,2]
[343910927,1733047352334,-150.0,7.515e-05,2]
[343910928,1733047352356,-172.83,7.534e-05,2]
[343910929,1733047352379,-605.4815,7.651e-05,2]
[343910930,1733047352402,-1148.70309701,7.899e-05,2]
[343910931,1733047352424,-1000.0,7.899e-05,2]
[343910932,1733047352445,-534.0,7.909e-05,2]
[343910933,1733047352467,-2517.0,7.919e-05,2]
[343910934,1733047352488,-500.0,7.973e-05,2]
[343910935,1733047352509,-400.0,7.973e-05,2]
[343910936,1733047352530,-500.0,7.973e-05,2]
[343910937,1733047352552,-500.0,7.973e-05,2]
[343910938,1733047352573,-9317.72325308,7.98e-05,2]
[343910939,1733047386567,300.0,7e-05,2]
[343910940,1733047389643,600.0,7.1e-05,2]
[343910941,1733047395335,2000.0,0.00024726,120]
[343910942,1733047422422,200.0,0.00024778,120]
[343910943,1733047431004,159.6,5.731e-05,2]
[343910944,1733047443791,2008.8,7.14e-05,2]
[343910945,1733047474496,1135.08,7.14e-05,2]
[343910946,1733047486398,340.24,7.14e-05,2]
[343910949,1733047639458,200.0,7e-05,2]
[343910950,1733047641933,500.0,7.1e-05,2]
[343910951,1733047672298,250.0,7.084e-05,2]
[343910964,1733047831442,-800.0,7.2e-05,2]
[343910965,1733047831454,-472.14614415,7.3e-05,2]
[343910966,1733047831548,-527.85385585,7.3e-05,2]
[343910967,1733047831557,-3291.08,7.31e-05,2]
[343910968,1733047831566,-1300.0,7.4e-05,2]
[343910969,1733047831576,-200.0,7.5e-05,2]
[343910970,1733047831586,-200.0,7.6e-05,2]
[343910971,1733047831595,-200.0,7.7e-05,2]
[343910972,1733047831606,-200.0,7.8e-05,2]
[343910973,1733047831615,-895.0,7.9e-05,2]
[343910974,1733047831625,-500.0,7.973e-05,2]
[343910975,1733047831636,-150.0,7.979e-05,2]
[343910976,1733047831646,-7109.91614415,7.98e-05,2]
[343910977,1733047831658,-2167.0,7.98e-05,2]
[343910978,1733047831670,-2508.82166883,7.98e-05,2]
[343910979,1733047831688,-386.86592198,7.98e-05,2]
[343910980,1733047831757,-13007.33233676,7.98e-05,2]
[343911047,1733047837648,-291539.55827732,7.98e-05,2]
[343911048,1733047837764,-6275.21349142,7.98e-05,2]
[343911049,1733047837776,-6017.50000025,7.98e-05,2]
[343911053,1733047839775,-1798.700001,7.98e-05,2]
[343911061,1733047842431,-150.0,7.426e-05,2]
[343911062,1733047842442,-5274.89719071,7.98e-05,2]
[343911063,1733047842453,-7843.26348003,7.98e-05,2]
[343911064,1733047842534,-5287.46458907,7.98e-05,2]
[343911065,1733047842806,-644.18696,7.98e-05,2]
[343911070,1733047845450,-7876.7664,7.98e-05,2]
[343911071,1733047845805,-564.45747729,7.98e-05,2]
[343911072,1733047999203,2000.0,0.00024726,120]
[343911073,1733048138145,4000.0,0.00025,120]
[343911074,1733048151056,-150.0,7.16e-05,2]
[343911075,1733048151665,-150.0,7.16e-05,2]
[343911076,1733048152710,-150.0,7.16e-05,2]
[343911077,1733048154614,-150.0,7.16e-05,2]
[343911078,1733048155047,-150.0,7.16e-05,2]
[343911079,1733048162566,301.69,7.114e-05,3]
[343911080,1733048169563,4000.0,0.00025,120]
[343911082,1733048199457,4000.0,0.00025,120]
[343911083,1733048199740,4000.0,0.00025,120]
[343911084,1733048221932,300.0,7.159e-05,2]
[343911085,1733048281972,300.0,7.159e-05,2]
[343911086,1733048341370,300.0,7.159e-05,2]
[343911087,1733048401884,300.0,7.159e-05,2]
[343911088,1733048426697,1457.24161728,7e-05,2]
[343911089,1733048428760,-46956.50890455,7.16e-05,2]
[343911090,1733048428786,-2528.0,7.283e-05,2]
[343911091,1733048428819,-1607.74,7.283e-05,2]
[343911092,1733048428847,-10259.33,7.34e-05,2]
[343911093,1733048428874,-150.0,7.372e-05,2]
[343911094,1733048428902,-180.57,7.421e-05,2]
[343911095,1733048428929,-187.0,7.781e-05,2]
[343911096,1733048428956,-420.0,7.875e-05,2]
[343911097,1733048428981,-1137.0,7.973e-05,2]
[343911098,1733048429007,-938.0,7.973e-05,2]
[343911099,1733048429032,-160.94437995,7.973e-05,2]
[343911100,1733048429060,-500.0,7.973e-05,2]
[343911101,1733048429086,-500.0,7.973e-05,2]
[343911102,1733048429111,-1821.39997995,7.979e-05,2]
[343911103,1733048429137,-17653.50673555,7.98e-05,2]
[343911104,1733048454825,-4060.0,7.98e-05,2]
[343911105,1733048717706,269137.68237213,0.0001873,45]
[343911106,1733048755085,1478.58469374,6.94e-05,2]
[343911107,1733048757556,150.0,7.16e-05,2]
[343911108,1733048767392,750.0,7e-05,2]
[343911109,1733048782913,123123.0,0.00017,30]
[343911110,1733048785794,200.6,7.16e-05,2]
[343911129,1733049031847,-161.28,7.431e-05,2]
[343911130,1733049031857,-150.0,7.642e-05,2]
[343911131,1733049031868,-500.0,7.88e-05,2]
[343911132,1733049031877,-13827.67883833,7.9e-05,2]
[343911133,1733049031887,-10853.527,7.979e-05,2]
[343911134,1733049031897,-217095.52905311,7.98e-05,2]
[343911137,1733049031934,-245639.14400585,7.98e-05,2]
[343911138,1733049031960,-3492.88451462,7.98e-05,2]
[343911139,1733049031999,-19794.9078768,7.98e-05,2]
[343911141,1733049032018,-301.6,7.98e-05,2]
[343911142,1733049032060,-8202.53034615,7.98e-05,2]
[343911145,1733049037865,-24809.2491875,7.98e-05,2]
[343911146,1733049037888,-23175.5356249,7.98e-05,2]
[343911178,1733049039632,-327.7550031,7.98e-05,2]
[343911179,1733049039866,-1026.707,7.98e-05,2]
[343911180,1733049039877,-9661.50879072,7.98e-05,2]
[343911185,1733049042642,-6449.41997782,7.98e-05,2]
[343911186,1733049042654,-12977.89511815,7.98e-05,2]
[343911187,1733049042664,-220.5832246,7.98e-05,2]
[343911188,1733049042828,-12898.42785198,7.98e-05,2]
[343911189,1733049042932,-14397.44492342,7.98e-05,2]
[343911190,1733049042942,-3627.8211422,7.99e-05,2]
[343911191,1733049042952,-1499.5573297,7.99e-05,2]
[343911192,1733049042962,-750.21767452,7.99e-05,2]
[343911193,1733049042971,-201.5522775,7.99e-05,2]
[343911194,1733049042981,-282.0952971,7.99e-05,2]
[343911195,1733049042991,-3604.4066335,7.993e-05,2]
[343911196,1733049043000,-1485.2702548,7.993e-05,2]
[343911197,1733049043010,-201.5522775,7.993e-05,2]
[343911198,1733049043019,-2964.28787389,7.995e-05,2]
[343911204,1733049045628,-616.70425081,7.995e-05,2]
[343911205,1733049045637,-156.27177919,7.995e-05,2]
[343911206,1733049045755,-480.6499805,7.995e-05,2]
[343911207,1733049045885,-2668.96964,7.995e-05,2]
[343911208,1733049045897,-251.68621631,7.995e-05,2]
[343911209,1733049045908,-472.07790493,7.995e-05,2]
[343911210,1733049239836,150.0,0.00025,120]
[343911211,1733049388981,2407.0,0.00025,120]
[343911213,1733049603258,33016.83684307,7.998e-05,12]
[343911319,1733050231798,-195.18,7.174e-05,2]
[343911320,1733050231808,-20469.69,7.176e-05,2]
[343911321,1733050231819,-500.0,7.24e-05,2]
[343911322,1733050231829,-150.0,7.35e-05,2]
[343911323,1733050231839,-165.71,7.378e-05,2]
[343911324,1733050231848,-500.0,7.863e-05,2]
[343911325,1733050231858,-2484.0,7.919e-05,2]
[343911326,1733050231868,-887.1261718,7.989e-05,2]
[343911327,1733050231877,-1150.2459149,7.989e-05,2]
[343911328,1733050231887,-852.891605,7.989e-05,2]
[343911329,1733050231896,-1161.757,7.993e-05,2]
[343911330,1733050231906,-1128.336469,7.993e-05,2]
[343911331,1733050231915,-839.1405695,7.993e-05,2]
[343911332,1733050231925,-150.0,7.994e-05,2]
[343911333,1733050231934,-151.89582564,7.995e-05,2]
[343911334,1733050231946,-13.18017436,7.995e-05,2]
[343911335,1733050231955,-1106.4270229,7.995e-05,2]
[343911336,1733050231965,-1084.517577,7.995e-05,2]
[343911337,1733050231975,-1062.6081309,7.995e-05,2]
[343911338,1733050231985,-825.389534,7.995e-05,2]
[343911339,1733050231994,-811.6384986,7.995e-05,2]
[343911340,1733050232004,-797.8874631,7.995e-05,2]
[343911341,1733050232013,-454.605,7.997e-05,2]
[343911342,1733050232023,-342.64,7.997e-05,2]
[343911343,1733050232032,-462.359,7.997e-05,2]
[343911344,1733050232042,-780.314,7.997e-05,2]
[343911345,1733050232052,-816.0,7.997e-05,2]
[343911346,1733050232063,-890.954,7.997e-05,2]
[343911348,1733050232072,-457.737,7.997e-05,2]
[343911349,1733050232082,-299.58846576,7.998e-05,2]
[343911350,1733050232091,-1335.26004601,7.998e-05,2]
[343911351,1733050232101,-10511.81876307,7.998e-05,2]
[343911352,1733050232114,-3694.97519999,7.998e-05,2]
[343911353,1733050232126,-614.72573488,7.998e-05,2]
[343911354,1733050232138,-1662.2,7.998e-05,2]
[343911365,1733050238103,-806.20911137,7.989e-05,2]
[343911366,1733050238113,-843.79088863,7.998e-05,2]
[343911367,1733050238125,-3577.5,7.998e-05,2]
[343911385,1733050239846,-567.8251154,7.998e-05,2]
[343911386,1733050239895,-1452.2077334,7.998e-05,2]
[343911394,1733050242722,-1163.62447938,7.998e-05,2]
[343911397,1733050242756,-13000.0,7.998e-05,2]
[343911401,1733050242883,-15206.71184943,7.998e-05,2]
[343911402,1733050242896,-18536.44300002,7.998e-05,2]
[343911403,1733050242906,-4141.97421726,7.998e-05,2]
[343911404,1733050242917,-522.8,7.998e-05,2]
[343911405,1733050243020,-5735.5879028,7.998e-05,2]
[343911406,1733050243031,-6522.22619024,7.998e-05,2]
[343911407,1733050243060,-270.9325738,7.998e-05,2]
[343911427,1733050245783,-3031.1999988,7.998e-05,2]
[343911428,1733050245804,-305.54665588,7.998e-05,2]
[343911429,1733050245817,-1016.9113663,7.998e-05,2]
[343911430,1733050245829,-725.59570465,7.998e-05,2]
[343911431,1733050245913,-1844.75357054,7.998e-05,2]
[343911439,1733050402379,500.0,0.00024999,120]
[343911441,1733050456841,150.0,1.4e-05,2]
[343911442,1733050459462,150.0,1.4e-05,2]
[343911443,1733050478077,322.00527706,7e-06,2]
[343911444,1733050487770,150.0,2e-05,2]
[343911445,1733050489015,150.0,2e-05,2]
[343911446,1733050491699,150.0,2e-05,2]
[343911447,1733050493813,150.0,2e-05,2]
[343911448,1733050499142,222.74,0.00025,120]
[343911449,1733050556142,150.0,2e-05,2]
[343911567,1733051432461,-875.0,7.308e-05,2]
[343911568,1733051432474,-4760.77,7.308e-05,2]
[343911569,1733051432483,-165.71,7.373e-05,2]
[343911570,1733051432492,-150.0,7.456e-05,2]
[343911571,1733051432502,-179.47,7.58e-05,2]
[343911572,1733051432512,-500.0,7.644e-05,2]
[343911574,1733051432521,-2267.0,7.84e-05,2]
[343911576,1733051432531,-300.0,7.972e-05,2]
[343911579,1733051432541,-500.0,7.973e-05,2]
[343911581,1733051432550,-500.0,7.973e-05,2]
[343911583,1733051432560,-182.2610296,7.993e-05,2]
[343911585,1733051432570,-784.1364279,7.993e-05,2]
[343911587,1733051432579,-178.7365301,7.995e-05,2]
[343911589,1733051432589,-175.2120305,7.995e-05,2]
[343911590,1733051432599,-171.687531,7.995e-05,2]
[343911591,1733051432612,-168.1630314,7.995e-05,2]
[343911592,1733051432622,-966.0975124,7.997e-05,2]
[343911594,1733051432631,-1205.39,7.997e-05,2]
[343911595,1733051432640,-184.029,7.997e-05,2]
[343911596,1733051432651,-44159.13815711,7.998e-05,2]
[343911597,1733051432660,-50446.61826456,7.998e-05,2]
[343911598,1733051432669,-12414.82833293,7.998e-05,2]
[343911599,1733051432679,-861809.57112952,7.999e-05,2]
[343911600,1733051432691,-6863.79999999,7.999e-05,2]
[343911601,1733051432711,-1215.16137044,7.999e-05,2]
[343911602,1733051432722,-920.27437117,7.999e-05,2]
[343911603,1733051432733,-479.3635473,7.999e-05,2]
[343911604,1733051432758,-8435.49603496,7.999e-05,2]
[343911605,1733051432770,-718.78087629,7.999e-05,2]
[343911612,1733051438003,-670.281815,7.999e-05,2]
[343911613,1733051438015,-575.844,7.999e-05,2]
[343911614,1733051438058,-12484.0399697,7.999e-05,2]
[343911615,1733051438069,-12462.32394396,7.999e-05,2]
[343911616,1733051438080,-4317.24091447,7.999e-05,2]
[343911617,1733051438092,-20677.85892164,7.999e-05,2]
[343911618,1733051438214,-739.73230278,7.999e-05,2]
[343911619,1733051438378,-669.7268079,7.999e-05,2]
[343911627,1733051440007,-910.84608584,7.999e-05,2]
[343911628,1733051440177,-1151.60415174,7.999e-05,2]
[343911629,1733051440234,-254.22842682,7.999e-05,2]
[343911630,1733051440247,-356.46,7.999e-05,2]
[343911641,1733051443109,-13649.25994726,7.999e-05,2]
[343911642,1733051443121,-251.2516105,7.999e-05,2]
[343911643,1733051443132,-823.1545129,7.999e-05,2]
[343911644,1733051443144,-17734.28681704,7.999e-05,2]
[343911645,1733051443172,-4333.13050439,7.999e-05,2]
[343911646,1733051443184,-6055.62125505,7.999e-05,2]
[343911647,1733051443195,-52169.71469244,7.999e-05,2]
[343911648,1733051443206,-39428.139,7.999e-05,2]
[343911649,1733051443427,-6268528.3953788,7.999e-05,2]
[343911650,1733051443439,-895618.629235,7.999e-05,2]
[343911672,1733051445992,-10894.20021332,7.999e-05,2]
[343911673,1733051446005,-1328.3213394,7.999e-05,2]
[343911674,1733051446037,-9701.2638,7.999e-05,2]
[343911675,1733051446087,-93879.59635004,7.999e-05,2]
[343911676,1733051446140,-534.48777409,7.999e-05,2]
[343911677,1733051446153,-6351.40734457,7.999e-05,2]
[343911682,1733051477665,40000.0,0.00016201,30]
[343911683,1733051491100,145524.32413337,0.0001502,30]
[343911686,1733051857301,1404.52,7.144e-05,2]
[343911687,1733051975358,1957.21122026,0.00025,120]
[343911688,1733052129840,352.13,6.989e-05,2]
[343911689,1733052136902,3597.22,6.984e-05,2]
[343911690,1733052184427,1046.17,6.984e-05,2]
[343911691,1733052231607,179.47,7.084e-05,2]
[343911692,1733052231821,250.0,7.01e-05,2]
[343911693,1733052247700,420.03,7.033e-05,2]
[343911694,1733052278254,200.0,7.033e-05,2]
[343911695,1733052302219,2000.0,7.043e-05,2]
[343911696,1733052317332,1122.82,7.089e-05,2]
[343911704,1733052414339,493.0,7.143e-05,2]
[343911706,1733052487420,3732.32,7.156e-05,2]
[343911721,1733052632231,-300.0,7.186e-05,2]
[343911722,1733052632243,-150.0,7.186e-05,2]
[343911723,1733052632252,-406.32,7.186e-05,2]
[343911724,1733052632268,-4292.12553642,7.186e-05,2]
[343911725,1733052632277,-4207.19718233,7.187e-05,2]
[343911726,1733052632287,-12113.59476104,7.187e-05,2]
[343911727,1733052632298,-11776.40523896,7.187e-05,2]